fUST/lending_fUST_20260625
["ID","MTS","AMOUNT","RATE_DAILY","PERIOD"]
[426436645,1782385838000,-500.0,0.00035412,7]
[426436650,1782385838000,-500.0,0.00035412,7]
[426436649,1782385838000,-500.0,0.00035412,7]
[426436648,1782385838000,-500.0,0.00035412,7]
[426436651,1782385838000,-500.0,0.00035412,7]
[426436652,1782385838000,-460.47858011,0.00035412,7]
[426436654,1782385838000,-500.0,0.00035412,7]
[426436653,1782385838000,-500.0,0.00035412,7]
[426436657,1782385838000,-500.0,0.00035412,7]
[426436658,1782385838000,-11601.92786838,0.00035413,120]
[426436655,1782385838000,-500.0,0.00035412,7]
[426436656,1782385838000,-500.0,0.00035412,7]
[426436646,1782385838000,-500.0,0.00035412,7]
[426436666,1782385840000,-12270.20000001,0.00035413,120]
[426436665,1782385840000,-61218.31883378,0.00035413,120]
[426436680,1782385843000,-524.75408545,0.00035413,120]
[426436681,1782385843000,-694.73403175,0.00035413,120]
[426436688,1782385847000,-14391.55775174,0.00035413,120]
[426436699,1782385967000,417.15472785,0.00027185,30]
[426436714,1782386193000,623.6,0.00028528,30]
[426436804,1782387032000,-264.84778193,0.00021093,2]
[426436809,1782387032000,-166.66666668,0.00023245,2]
[426436807,1782387032000,-556.59914985,0.00022194,2]
[426436811,1782387032000,-166.66666666,0.00028452,2]
[426436805,1782387032000,-91.31891917,0.00021306,5]
[426436812,1782387032000,-343.72830236,0.00029203,2]
[426436806,1782387032000,-107.38554684,0.00021306,5]
[426436810,1782387032000,-214.353,0.00024067,5]
[426436816,1782387032000,-1295.71707343,0.00030468,2]
[426436813,1782387032000,-1000.68833504,0.00029485,2]
[426436817,1782387032000,-800.3124,0.00030468,2]
[426436815,1782387032000,-719.84281857,0.00030468,2]
[426436814,1782387032000,-151.0,0.00030137,6]
[426436808,1782387032000,-3638.76904766,0.00022194,2]
[426436845,1782387038000,-166.66666666,0.00033659,2]
[426436838,1782387038000,-1000.0,0.00032959,30]
[426436830,1782387038000,-559.48575382,0.00032071,2]
[426436834,1782387038000,-1790.35441224,0.00032071,2]
[426436836,1782387038000,-513.08440775,0.00032958,30]
[426436826,1782387038000,-199.388035,0.00030979,2]
[426436840,1782387038000,-2623.99150518,0.00032982,2]
[426436828,1782387038000,-623.6,0.00031268,30]
[426436825,1782387038000,-3599.21409287,0.00030468,2]
[426436824,1782387038000,-1503.18461944,0.00030468,2]
[426436832,1782387038000,-1007.07435688,0.00032071,2]
[426436843,1782387038000,-176.747651,0.00033275,2]
[426436850,1782387038000,-517.77481896,0.00034578,2]
[426436848,1782387038000,-173.0,0.00034521,30]
[426436858,1782387038000,-152.42357038,0.00034773,2]
[426436856,1782387038000,-152.1451255,0.00034773,2]
[426436852,1782387038000,-216.92258345,0.00034707,30]
[426436854,1782387038000,-212.28358862,0.00034773,2]
[426436862,1782387038000,-240.62144418,0.00035113,7]
[426436866,1782387038000,-19932.44658127,0.00035211,120]
[426436860,1782387038000,-632.079126,0.00035112,2]
[426436867,1782387038000,-251553.73297433,0.00035212,120]
[426436865,1782387038000,-240.2216209,0.00035113,7]
[426436868,1782387038000,-253818.2554561,0.00035212,120]
[426436842,1782387038000,-173.0,0.00033,14]
[426436873,1782387040000,-500.0,0.00034616,7]
[426436875,1782387040000,-1774.967945,0.00035212,120]
[426436874,1782387040000,-500.0,0.00034616,7]
[426436876,1782387040000,-1451.4124612,0.00035212,120]
[426436895,1782387043000,-500.0,0.00034616,7]
[426436894,1782387043000,-274.967945,0.00034616,7]
[426436892,1782387043000,-500.0,0.00034616,7]
[426436893,1782387043000,-225.032055,0.00034616,7]
[426436890,1782387043000,-500.0,0.00034616,7]
[426436889,1782387043000,-500.0,0.00034616,7]
[426436891,1782387043000,-500.0,0.00034616,7]
[426436901,1782387044000,-500.0,0.00034616,7]
[426436906,1782387044000,-500.0,0.00034616,7]
[426436904,1782387044000,-500.0,0.00034616,7]
[426436899,1782387044000,-500.0,0.00034616,7]
[426436897,1782387044000,-500.0,0.00034616,7]
[426436898,1782387044000,-500.0,0.00034616,7]
[426436903,1782387044000,-500.0,0.00034616,7]
[426436900,1782387044000,-500.0,0.00034616,7]
[426436896,1782387044000,-500.0,0.00034616,7]
[426436905,1782387044000,-500.0,0.00034616,7]
[426436902,1782387044000,-500.0,0.00034616,7]
[426436907,1782387044000,-500.0,0.00034616,7]
[426436919,1782387044000,-500.0,0.00034616,7]
[426436909,1782387044000,-500.0,0.00034616,7]
[426436917,1782387044000,-500.0,0.00034616,7]
[426436918,1782387044000,-238.48050576,0.00034616,7]
[426436916,1782387044000,-500.0,0.00034616,7]
[426436912,1782387044000,-500.0,0.00034616,7]
[426436915,1782387044000,-500.0,0.00034616,7]
[426436911,1782387044000,-500.0,0.00034616,7]
[426436910,1782387044000,-500.0,0.00034616,7]
[426436914,1782387044000,-500.0,0.00034616,7]
[426436908,1782387044000,-500.0,0.00034616,7]
[426436920,1782387044000,-3311.60800039,0.00035212,120]
[426436913,1782387044000,-500.0,0.00034616,7]
[426436930,1782387047000,-331.6,0.00035212,120]
[426436929,1782387047000,-3847.07413232,0.00035212,120]
[426436949,1782387786000,417.15472785,0.0002724,30]
[426437003,1782388233000,-624.22547888,0.00032982,2]
[426436999,1782388233000,-5000.0,0.00032325,2]
[426437002,1782388233000,-500.0,0.00032958,30]
[426437006,1782388233000,-739.17505976,0.00032982,2]
[426437000,1782388233000,-507.41022922,0.00032958,30]
[426437015,1782388233000,-659.61038896,0.00034718,2]
[426437019,1782388233000,-423.23756835,0.0003491,7]
[426437012,1782388233000,-234.9840033,0.00033734,7]
[426437010,1782388233000,-187.241228,0.00033648,2]
[426437014,1782388233000,-537.3,0.00034616,30]
[426437017,1782388233000,-500.0,0.0003491,7]
[426437008,1782388233000,-202.82422427,0.00032982,2]
[426437033,1782388234000,-500.0,0.00034911,7]
[426437021,1782388234000,-500.0,0.0003491,7]
[426437023,1782388234000,-473.84805057,0.0003491,7]
[426437025,1782388234000,-448.78686076,0.0003491,7]
[426437027,1782388234000,-213.81037159,0.0003491,2]
[426437029,1782388234000,-460.96818549,0.0003491,2]
[426437031,1782388234000,-426.368952,0.00034911,7]
[426437034,1782388234000,-213.48461744,0.00034911,7]
[426437043,1782388234000,-500.0,0.00034911,7]
[426437041,1782388234000,-490.05932227,0.00034911,7]
[426437053,1782388234000,-500.0,0.00034911,7]
[426437051,1782388234000,-500.0,0.00034911,7]
[426437049,1782388234000,-500.0,0.00034911,7]
[426437037,1782388234000,-286.51538256,0.00034911,7]
[426437045,1782388234000,-500.0,0.00034911,7]
[426437039,1782388234000,-9.94067773,0.00034911,7]
[426437055,1782388234000,-363.22563477,0.00034911,7]
[426437047,1782388234000,-500.0,0.00034911,7]
[426437174,1782388238000,-511.05340957,0.00032002,2]
[426437182,1782388238000,-151.0,0.000349,13]
[426437184,1782388238000,-151.0,0.000349,14]
[426437180,1782388238000,-123.90676325,0.00032002,2]
[426437190,1782388238000,-151.0,0.000349,10]
[426437188,1782388238000,-151.0,0.000349,15]
[426437186,1782388238000,-151.0,0.000349,12]
[426437193,1782388238000,-136.77436523,0.00034911,7]
[426437195,1782388238000,-224.11971849,0.00034911,7]
[426437445,1782388241000,-275.88028151,0.00034911,7]
[426437447,1782388241000,-39.88857102,0.00034911,7]
[426437821,1782388247000,-292965.38048977,0.00034912,120]
[426437820,1782388247000,-500.0,0.00034911,7]
[426437819,1782388247000,-589.94294264,0.00034911,7]
[426437818,1782388247000,-500.0,0.00034911,7]
[426437815,1782388247000,-500.0,0.00034911,7]
[426437816,1782388247000,-500.0,0.00034911,7]
[426437814,1782388247000,-460.11142898,0.00034911,7]
[426437817,1782388247000,-500.0,0.00034911,7]
[426437828,1782388250000,-590.36758624,0.00034912,120]
[426437832,1782388688000,700.0,0.0003,120]
[426437833,1782388723000,1020.0,0.0003,120]
[426437834,1782388823000,2000000.0,0.00030137,30]
[426437835,1782388968000,-153.78275799,0.00023392,5]
[426437870,1782389432000,-1663.56666575,0.00022477,2]
[426437869,1782389432000,-3336.43333425,0.00022252,2]
[426437867,1782389432000,-259.79676995,0.00022252,2]
[426437935,1782389439000,-321.69756398,0.00031056,2]
[426437931,1782389439000,-513.76643031,0.00030137,6]
[426437929,1782389439000,-187.12586,0.00030071,2]
[426437927,1782389439000,-255.3260695,0.00025,2]
[426437933,1782389439000,-346.24537393,0.00030137,6]
[426437923,1782389439000,-3336.43333425,0.00022477,2]
[426437925,1782389439000,-153.78275799,0.00024885,5]
[426438085,1782389444000,-526.14909992,0.00034498,30]
[426438079,1782389444000,-500.0,0.00034497,7]
[426438083,1782389444000,-501.83821776,0.00034498,30]
[426438098,1782389444000,-500.0,0.0003461,7]
[426438087,1782389444000,-500.0,0.00034498,2]
[426438093,1782389444000,-2687.39363547,0.00034498,2]
[426438077,1782389444000,-1000.0,0.00034,120]
[426438081,1782389444000,-270.21830762,0.00034497,7]
[426438076,1782389444000,-1786.15525392,0.00033912,14]
[426438086,1782389444000,-500.0,0.00034498,30]
[426438084,1782389444000,-253.094,0.00034498,39]
[426438078,1782389444000,-169.790678,0.00034105,2]
[426438082,1782389444000,-500.0,0.00034498,30]
[426438080,1782389444000,-518.01623558,0.00034497,7]
[426438074,1782389444000,-931.99467413,0.00032773,2]
[426438073,1782389444000,-1000.0,0.00032,120]
[426438072,1782389444000,-686.6040167,0.00031333,2]
[426438071,1782389444000,-0.22705722,0.00031056,2]
[426438075,1782389444000,-2911.1246849,0.00033912,14]
[426438089,1782389444000,-613.14284967,0.00034498,2]
[426438096,1782389444000,-500.0,0.0003461,7]
[426438094,1782389444000,-11128.80417075,0.000345,7]
[426438090,1782389444000,-167.96210222,0.00034498,2]
[426438111,1782389444000,-25804.69738027,0.00034611,120]
[426438112,1782389444000,-7088.7351459,0.00034611,120]
[426438108,1782389444000,-500.0,0.0003461,7]
[426438102,1782389444000,-500.0,0.0003461,7]
[426438105,1782389444000,-500.0,0.0003461,7]
[426438100,1782389444000,-500.0,0.0003461,7]
[426438110,1782389444000,-3442.27435009,0.00034611,120]
[426438107,1782389444000,-500.0,0.0003461,7]
[426438104,1782389444000,-500.0,0.0003461,7]
[426438101,1782389444000,-512.0592879,0.0003461,7]
[426438109,1782389444000,-250.0,0.0003461,7]
[426438106,1782389444000,-500.0,0.0003461,7]
[426438099,1782389444000,-500.0,0.0003461,7]
[426438088,1782389444000,-500.0,0.00034498,30]
[426438095,1782389444000,-3169.34354622,0.0003451,2]
[426438097,1782389444000,-484.26326738,0.0003461,7]
[426438091,1782389444000,-671.84840887,0.00034498,2]
[426438092,1782389444000,-1511.65891995,0.00034498,2]
[426438103,1782389444000,-500.0,0.0003461,7]
[426438120,1782389447000,-23211.06331337,0.00034611,120]
[426438121,1782389447000,-20988.73288112,0.00034611,120]
[426438126,1782389605000,417.15472785,0.0002729,30]
[426438652,1782390121000,10000.0,0.00030137,30]
[426438837,1782390631000,-1470.04698373,0.00027256,2]
[426438840,1782390631000,-2921.25025741,0.00027256,2]
[426438836,1782390631000,-300.0,0.00025178,15]
[426438845,1782390631000,-608.70275886,0.00027256,2]
[426438847,1782390631000,-4948.74514464,0.00027531,2]
[426438933,1782390642000,-300.0,0.00027808,2]
[426438935,1782390642000,-64.26414464,0.00029103,2]
[426438975,1782390642000,-151.0,0.00030137,6]
[426438973,1782390642000,-617.29807823,0.00029103,2]
[426438976,1782390642000,-55.10307043,0.00030137,6]
[426438931,1782390642000,-51.25485536,0.00027531,2]
[426439097,1782390643000,-500.0,0.00034432,7]
[426439085,1782390643000,-500.0,0.00034432,7]
[426439081,1782390643000,-500.0,0.00034432,7]
[426439083,1782390643000,-500.0,0.00034432,7]
[426439077,1782390643000,-310.09075332,0.00034432,7]
[426439066,1782390643000,-500.0,0.00034432,7]
[426439058,1782390643000,-500.0,0.00034432,7]
[426439062,1782390643000,-500.0,0.00034432,7]
[426439064,1782390643000,-500.0,0.00034432,7]
[426439068,1782390643000,-189.90924668,0.00034432,7]
[426439050,1782390643000,-958.10398423,0.0003359,14]
[426439087,1782390643000,-500.0,0.00034432,7]
[426439054,1782390643000,-500.0,0.00034432,7]
[426439056,1782390643000,-188.79410894,0.00034432,7]
[426439052,1782390643000,-1499.23912855,0.0003359,2]
[426439048,1782390643000,-552.9464623,0.0003359,14]
[426439046,1782390643000,-588.32366644,0.0003338,14]
[426439044,1782390643000,-2055.06572124,0.00031825,6]
[426439040,1782390643000,-164.0,0.00031205,44]
[426439042,1782390643000,-561.9850397,0.00031287,2]
[426439038,1782390643000,-241.63264192,0.00030137,6]
[426439061,1782390643000,-500.0,0.00034432,7]
[426439091,1782390643000,-500.0,0.00034432,7]
[426439114,1782390643000,-500.0,0.00034432,7]
[426439079,1782390643000,-500.0,0.00034432,7]
[426439089,1782390643000,-500.0,0.00034432,7]
[426439139,1782390643000,-500.0,0.00034432,7]
[426439136,1782390643000,-500.0,0.00034432,7]
[426439134,1782390643000,-500.0,0.00034432,7]
[426439128,1782390643000,-500.0,0.00034432,7]
[426439130,1782390643000,-500.0,0.00034432,7]
[426439132,1782390643000,-500.0,0.00034432,7]
[426439126,1782390643000,-500.0,0.00034432,7]
[426439118,1782390643000,-500.0,0.00034432,7]
[426439124,1782390643000,-500.0,0.00034432,7]
[426439120,1782390643000,-500.0,0.00034432,7]
[426439122,1782390643000,-500.0,0.00034432,7]
[426439112,1782390643000,-500.0,0.00034432,7]
[426439106,1782390643000,-429.79652123,0.00034432,7]
[426439104,1782390643000,-500.0,0.00034432,7]
[426439108,1782390643000,-500.0,0.00034432,7]
[426439100,1782390643000,-500.0,0.00034432,7]
[426439102,1782390643000,-500.0,0.00034432,7]
[426439093,1782390643000,-500.0,0.00034432,7]
[426439099,1782390643000,-500.0,0.00034432,7]
[426439095,1782390643000,-500.0,0.00034432,7]
[426439116,1782390643000,-500.0,0.00034432,7]
[426439151,1782390644000,-204.15462514,0.00034432,7]
[426439145,1782390644000,-500.0,0.00034432,7]
[426439149,1782390644000,-500.0,0.00034432,7]
[426439147,1782390644000,-500.0,0.00034432,7]
[426439140,1782390644000,-500.0,0.00034432,7]
[426439157,1782390644000,-500.0,0.00034432,7]
[426439155,1782390644000,-500.0,0.00034432,7]
[426439153,1782390644000,-500.0,0.00034432,7]
[426439161,1782390644000,-18.6583281,0.00034432,7]
[426439159,1782390644000,-441.69723264,0.00034432,7]
[426439143,1782390644000,-500.0,0.00034432,7]
[426439197,1782390647000,-500.0,0.00034588,30]
[426439195,1782390647000,-6046.63567982,0.00034534,2]
[426439191,1782390647000,-225.20121027,0.00034534,2]
[426439192,1782390647000,-4199.05255543,0.00034534,2]
[426439193,1782390647000,-900.80484107,0.00034534,2]
[426439188,1782390647000,-1103.6571294,0.00034534,2]
[426439181,1782390647000,-500.0,0.00034451,30]
[426439185,1782390647000,-500.0,0.00034533,7]
[426439182,1782390647000,-202.475,0.00034498,39]
[426439180,1782390647000,-500.0,0.00034432,7]
[426439178,1782390647000,-500.0,0.00034432,7]
[426439177,1782390647000,-481.3416719,0.00034432,7]
[426439196,1782390647000,-500.0,0.00034588,30]
[426439179,1782390647000,-500.0,0.00034432,7]
[426439205,1782390647000,-500.0,0.00034589,7]
[426439183,1782390647000,-500.0,0.00034509,30]
[426439206,1782390647000,-157.79338115,0.00034589,7]
[426439204,1782390647000,-500.0,0.00034589,7]
[426439210,1782390647000,-500.0,0.00034589,7]
[426439214,1782390647000,-200.0,0.00034589,7]
[426439212,1782390647000,-500.0,0.00034589,7]
[426439213,1782390647000,-500.0,0.00034589,7]
[426439209,1782390647000,-500.0,0.00034589,7]
[426439211,1782390647000,-500.0,0.00034589,7]
[426439208,1782390647000,-500.0,0.00034589,7]
[426439215,1782390647000,-13461.83485982,0.0003459,7]
[426439203,1782390647000,-500.0,0.00034589,7]
[426439200,1782390647000,-338.98428717,0.00034589,7]
[426439198,1782390647000,-500.0,0.00034589,30]
[426439207,1782390647000,-500.0,0.00034589,7]
[426439202,1782390647000,-500.0,0.00034589,7]
[426439199,1782390647000,-500.0,0.00034589,30]
[426439201,1782390647000,-500.0,0.00034589,7]
[426439306,1782391119000,176960.0,0.000178,30]
[426439313,1782391425000,417.15472785,0.00027326,30]
[426439366,1782391832000,-2094.2546689,0.00021028,2]
[426439439,1782391838000,-157.47118212,0.00030559,6]
[426439472,1782391838000,-158.0,0.00032301,52]
[426439463,1782391838000,-185.60079899,0.00032203,2]
[426439438,1782391838000,-187.12586,0.00030437,2]
[426439459,1782391838000,-201.34243532,0.00032203,2]
[426439450,1782391838000,-195.71551696,0.00032203,2]
[426439476,1782391838000,-390.1598345,0.00032397,2]
[426439461,1782391838000,-150.97704346,0.00032203,2]
[426439465,1782391838000,-165.56321481,0.00032203,2]
[426439484,1782391838000,-161.80245987,0.00033125,2]
[426439482,1782391838000,-415.1906047,0.00033125,2]
[426439480,1782391838000,-4332.37037498,0.00033022,2]
[426439470,1782391838000,-194.50323661,0.00032229,2]
[426439468,1782391838000,-164.47379594,0.00032217,2]
[426439466,1782391838000,-199.14037841,0.00032217,2]
[426439478,1782391838000,-1962.05711893,0.00032807,2]
[426439454,1782391838000,-209.28847274,0.00032203,2]
[426439485,1782391838000,-163.93145545,0.00033125,2]
[426439488,1782391838000,-346.00625372,0.00033125,2]
[426439474,1782391838000,-763.021652,0.00032381,2]
[426439443,1782391838000,-354.34051472,0.00030559,6]
[426439421,1782391838000,-523.14138277,0.00028326,14]
[426439441,1782391838000,-244.32337315,0.00030559,6]
[426439487,1782391838000,-391.43103391,0.00033125,2]
[426439412,1782391838000,-5000.0,0.0002124,2]
[426439410,1782391838000,-737.29068037,0.00021028,2]
[426439414,1782391838000,-193.0,0.0002189,5]
[426439416,1782391838000,-910.38587883,0.00026,2]
[426439429,1782391838000,-162.77,0.00029715,2]
[426439427,1782391838000,-162.79,0.00029715,2]
[426439430,1782391838000,-162.77,0.00029715,2]
[426439419,1782391838000,-164.0,0.00026822,22]
[426439447,1782391838000,-993.49694017,0.00032125,14]
[426439432,1782391838000,-162.77,0.00029715,2]
[426439434,1782391838000,-151.0,0.0003,14]
[426439423,1782391838000,-162.77,0.00029715,2]
[426439436,1782391838000,-269.2443209,0.0003004,2]
[426439425,1782391838000,-162.77,0.00029715,2]
[426439456,1782391838000,-178.08149485,0.00032203,2]
[426439448,1782391838000,-207.59530235,0.00032203,2]
[426439457,1782391838000,-156.40147862,0.00032203,2]
[426439445,1782391838000,-151.0,0.00031737,14]
[426439452,1782391838000,-173.00312686,0.00032203,2]
[426439418,1782391838000,-164.0,0.00026822,22]
[426439490,1782391838000,-418.57694549,0.00033125,2]
[426439519,1782391838000,-1183.47373851,0.00033315,2]
[426439492,1782391838000,-356.16298971,0.00033125,2]
[426439544,1782391838000,-327.86291089,0.00033739,2]
[426439549,1782391838000,-519.00938058,0.00033739,2]
[426439540,1782391838000,-193.71844992,0.00033739,2]
[426439546,1782391838000,-165.68334843,0.00033739,2]
[426439551,1782391838000,-627.86541823,0.00033739,2]
[426439542,1782391838000,-323.60491973,0.00033739,2]
[426439553,1782391838000,-534.24448456,0.00033739,2]
[426439557,1782391838000,-402.10046134,0.00033739,2]
[426439559,1782391838000,-373.29856347,0.00033739,2]
[426439547,1782391838000,-587.14655087,0.00033739,2]
[426439566,1782391838000,-496.68964443,0.00033739,2]
[426439564,1782391838000,-452.93113039,0.00033739,2]
[426439562,1782391838000,-604.02730597,0.00033739,2]
[426439570,1782391838000,-250.733,0.00033739,36]
[426439571,1782391838000,-160.0,0.00033739,2]
[426439573,1782391838000,-160.0,0.00033739,2]
[426439568,1782391838000,-556.80239696,0.00033739,2]
[426439575,1782391838000,-160.0,0.00033739,2]
[426439577,1782391838000,-160.0,0.00033739,2]
[426439494,1782391838000,-188.26582076,0.00033125,2]
[426439561,1782391838000,-469.20443586,0.00033739,2]
[426439538,1782391838000,-622.78590706,0.00033739,2]
[426439555,1782391838000,-376.53164153,0.00033739,2]
[426439535,1782391838000,-500.0,0.00033738,30]
[426439495,1782391838000,-201.05023067,0.00033125,2]
[426439536,1782391838000,-180.40516404,0.00033739,2]
[426439497,1782391838000,-312.80295724,0.00033125,2]
[426439503,1782391838000,-301.95408693,0.00033125,2]
[426439501,1782391838000,-402.68487065,0.00033125,2]
[426439499,1782391838000,-186.64928174,0.00033125,2]
[426439507,1782391838000,-331.12642962,0.00033125,2]
[426439517,1782391838000,-157.76705047,0.00033151,2]
[426439509,1782391838000,-500.0,0.00033138,2]
[426439512,1782391838000,-328.94759188,0.00033138,2]
[426439505,1782391838000,-371.20159797,0.00033125,2]
[426439514,1782391838000,-389.00647321,0.00033151,2]
[426439511,1782391838000,-398.28075681,0.00033138,2]
[426439533,1782391838000,-500.0,0.00033736,2]
[426439529,1782391838000,-500.0,0.00033736,30]
[426439527,1782391838000,-500.0,0.00033736,30]
[426439531,1782391838000,-500.0,0.00033736,2]
[426439525,1782391838000,-500.0,0.00033686,2]
[426439523,1782391838000,-151.0,0.00033475,14]
[426439521,1782391838000,-500.0,0.00033412,2]
[426439516,1782391838000,-157.88550914,0.00033151,2]
[426439598,1782391839000,-500.0,0.00033765,7]
[426439605,1782391839000,-315.53410094,0.00033766,2]
[426439603,1782391839000,-315.77101828,0.00033766,2]
[426439601,1782391839000,-583.50970982,0.00033766,2]
[426439607,1782391839000,-206.41716342,0.00033794,2]
[426439600,1782391839000,-500.0,0.00033765,7]
[426439590,1782391839000,-500.0,0.00033765,7]
[426439588,1782391839000,-500.0,0.00033765,7]
[426439594,1782391839000,-500.0,0.00033765,7]
[426439591,1782391839000,-500.0,0.00033765,7]
[426439596,1782391839000,-500.0,0.00033765,7]
[426439592,1782391839000,-500.0,0.00033765,7]
[426439579,1782391839000,-264.51303803,0.00033739,2]
[426439582,1782391839000,-597.42113522,0.00033753,2]
[426439584,1782391839000,-493.42138782,0.00033753,2]
[426439581,1782391839000,-763.021652,0.00033744,2]
[426439612,1782391839000,-157.555065,0.00033893,7]
[426439586,1782391839000,-493.89100961,0.00033765,7]
[426439611,1782391839000,-157.555065,0.00033893,7]
[426439641,1782391839000,-321.346072,0.00033893,7]
[426439618,1782391839000,-519.720164,0.00033893,7]
[426439649,1782391839000,-1187654.48394878,0.00033894,120]
[426439645,1782391839000,-58454.71001768,0.00033894,120]
[426439647,1782391839000,-31157.21123,0.00033894,120]
[426439609,1782391839000,-157.555065,0.00033893,7]
[426439643,1782391839000,-139564.27087314,0.00033894,120]
[426439638,1782391839000,-388.436827,0.00033893,7]
[426439634,1782391839000,-321.346072,0.00033893,7]
[426439636,1782391839000,-166.160299,0.00033893,2]
[426439630,1782391839000,-388.436827,0.00033893,7]
[426439639,1782391839000,-273.633134,0.00033893,7]
[426439625,1782391839000,-388.436827,0.00033893,7]
[426439627,1782391839000,-273.633134,0.00033893,7]
[426439629,1782391839000,-151.0,0.00033893,7]
[426439620,1782391839000,-519.720164,0.00033893,7]
[426439623,1782391839000,-273.633134,0.00033893,7]
[426439616,1782391839000,-157.555065,0.00033893,7]
[426439614,1782391839000,-519.720164,0.00033893,7]
[426439621,1782391839000,-519.720164,0.00033893,7]
[426439632,1782391839000,-273.633134,0.00033893,7]
[426439804,1782391840000,-388.436827,0.00033893,7]
[426439802,1782391840000,-166.160299,0.00033893,2]
[426439806,1782391840000,-151.0,0.00033893,7]
[426439808,1782391840000,-659.117965,0.00033893,7]
[426439809,1782391840000,-208.288761,0.00033893,7]
[426440099,1782391843000,-659.117965,0.00033893,7]
[426440098,1782391843000,-321.346072,0.00033893,7]
[426440097,1782391843000,-151.0,0.00033893,7]
[426440100,1782391843000,-148.318353,0.00033893,2]
[426440096,1782391843000,-166.160299,0.00033893,2]
[426440095,1782391843000,-113.057311,0.00033893,7]
[426440111,1782391847000,-659.117965,0.00033893,7]
[426440110,1782391847000,-659.117965,0.00033893,7]
[426440109,1782391847000,-17.841946,0.00033893,2]
[426440112,1782391847000,-3295.74185516,0.00033894,120]
[426440122,1782392100000,72160.0,0.00030137,30]
[426440123,1782392141000,100000.0,0.00030137,30]
[426440124,1782392181000,299804.0343752,0.00027343,30]
[426440133,1782392260000,16756.02975732,7.6e-05,2]
[426440134,1782392264000,2839.46869173,0.0001,2]
[426440137,1782392266000,5469.54706229,0.00027343,30]
[426440147,1782392810000,4042.91773373,0.00011,2]
[426440176,1782393032000,-3218.45776657,0.000118,5]
[426440174,1782393032000,-586.8914962,0.000115,2]
[426440191,1782393032000,-500.0,0.00011998,2]
[426440199,1782393032000,-473.17613155,0.00011998,2]
[426440180,1782393032000,-86.47204886,0.000118,5]
[426440197,1782393032000,-26.82386845,0.00011998,2]
[426440172,1782393032000,-156.0,0.00011171,2]
[426440195,1782393032000,-406.63424162,0.00011998,2]
[426440193,1782393032000,-93.36575838,0.00011998,2]
[426440189,1782393032000,-500.0,0.00011998,2]
[426440187,1782393032000,-3790.82407809,0.00011899,2]
[426440171,1782393032000,-1916.37416936,0.0001089,2]
[426440182,1782393032000,-500.0,0.000118,2]
[426440184,1782393032000,-500.0,0.000118,2]
[426440201,1782393032000,-497.60614411,0.00011998,2]
[426440186,1782393032000,-241.94368111,0.000118,2]
[426440230,1782393038000,-126.12614411,0.00011998,2]
[426440228,1782393038000,-500.0,0.00011998,2]
[426440229,1782393038000,-500.0,0.00011998,2]
[426440227,1782393038000,-2.39385589,0.00011998,2]
[426440260,1782393043000,-322.24,0.00011998,2]
[426440285,1782393047000,-291.88716815,0.00011998,2]
[426440279,1782393047000,-617.97945631,0.00011998,2]
[426440278,1782393047000,-51.63385589,0.00011998,2]
[426440280,1782393047000,-500.0,0.00011998,2]
[426440283,1782393047000,-500.0,0.00011998,2]
[426440286,1782393047000,-208.11283185,0.00011998,2]
[426440282,1782393047000,-500.0,0.00011998,2]
[426440284,1782393047000,-500.0,0.00011998,2]
[426440287,1782393047000,-95.88716815,0.00011998,2]
[426440281,1782393047000,-500.0,0.00011998,2]
[426440292,1782393222000,252.0,0.0003,120]
[426440293,1782393244000,417.15472785,0.00027384,30]